bitfinex-derivatives/quotes_ETHF0:USTF0_20250606
["timestamp","ask_amount","ask_price","bid_price","bid_amount"]
[1749195743078,0.81403,2455.8,2455.7,0.00610961]
[1749195743283,0.81416,2455.4,2455.3,4.955]
[1749195743473,3.2078,2455.4,2455.3,4.955]
[1749195744180,3.2078,2455.4,2455.3,5.76919]
[1749195746685,4.70727,2455.7,2455.4,0.81413]
[1749195746887,0.8141,2455.6,2455.4,0.81413]
[1749195747385,4.70728,2455.7,2455.5,0.81412]
[1749195747586,0.8141,2455.6,2455.4,0.81414]
[1749195747885,0.81409,2455.6,2455.4,0.81416]
[1749195748076,0.81412,2455.6,2455.4,0.81415]
[1749195748481,0.81412,2455.6,2455.5,0.81412]
[1749195748788,3.8932,2455.7,2455.3,4.955]
[1749195748982,0.81415,2455.5,2455.3,5.76918]
[1749195749383,0.81415,2455.5,2455.4,0.81416]
[1749195749987,0.81412,2455.6,2455.4,0.81416]
[1749195750289,0.81412,2455.6,2455.5,0.81413]
[1749195750682,4.70728,2455.7,2455.6,0.81409]
[1749195752683,3.2078,2455.7,2455.6,0.81409]
[1749195753394,0.81412,2455.6,2455.5,0.81411]
[1749195753686,3.2078,2455.7,2455.4,0.6473]
[1749195753988,4.02189,2455.7,2455.6,0.81409]
[1749195754377,3.2078,2455.7,2455.6,0.81409]
[1749195757589,4.02186,2455.7,2455.6,0.81409]
[1749195760386,4.02186,2455.7,2455.5,0.8141]
[1749195761093,0.81409,2455.6,2455.5,0.8141]
[1749195762189,0.81413,2455.5,2455.4,1.46145]
[1749195763091,0.81412,2455.6,2455.5,0.81411]
[1749195763294,0.81412,2455.5,2455.4,1.46144]
[1749195764591,0.81416,2455.4,2455.3,4.955]
[1749195764794,4.02196,2455.4,2455.3,4.955]
[1749195765990,4.02196,2455.4,2455.3,5.76919]
[1749195766190,4.02196,2455.4,2455.3,4.955]
[1749195766394,4.02196,2455.4,2455.3,5.76919]
[1749195766797,4.02196,2455.4,2455.3,4.955]
[1749195768095,4.02196,2455.4,2455.3,5.76919]
[1749195768597,4.02196,2455.4,2455.3,4.955]
[1749195768798,0.81422,2455.2,2455.1,0.00610961]
[1749195769292,3.21390961,2455.4,2455.3,0.81419]
[1749195771105,0.00610961,2455.4,2455.3,0.81419]
[1749195772398,3.2078,2455.9,2455.8,0.81403]
[1749195772994,3.2078,2455.9,2455.8,2.16393]
[1749195774899,0.81405,2455.8,2455.2,6.98553]
[1749195775102,4.02182,2455.9,2455.7,0.81403]
[1749195775303,4.02182,2455.9,2455.8,0.81403]
[1749195775504,4.29416354,2455.9,2455.8,0.81403]
[1749195775803,5.10815354,2455.9,2455.8,0.6992]
[1749195776704,5.10815354,2455.9,2455.8,1.51323]
[1749195777201,3.2078,2455.9,2455.8,1.51323]
[1749195777604,3.2078,2455.9,2455.8,3.55123]
[1749195778606,4.02179,2455.9,2455.8,3.55123]
[1749195780200,4.02179,2455.9,2455.8,0.6992]
[1749195780499,4.02181,2455.9,2455.8,4.949]
[1749195781303,0.81403,2455.8,2455.7,0.81404]
[1749195781605,0.81403,2455.8,2455.7,5.76304]
[1749195781910,0.81403,2455.8,2455.7,0.81404]
[1749195782404,0.81403,2455.8,2455.7,5.76304]
[1749195782607,4.02181,2455.9,2455.8,0.81403]
[1749195783307,4.02181,2455.9,2455.8,5.76303]
[1749195788111,3.2078,2455.9,2455.8,5.76303]
[1749195790508,4.02179,2455.9,2455.8,5.76303]
[1749195790711,3.2078,2455.9,2455.8,5.76303]
[1749195807517,3.2078,2455.9,2455.8,4.945]
[1749195807717,3.2078,2455.9,2455.8,5.75903]
[1749195811123,3.2078,2455.9,2455.8,7.13443]
[1749195813923,3.2078,2455.9,2455.8,5.75903]
[1749195817326,4.02179,2455.9,2455.8,5.75903]
[1749195817523,3.2078,2455.9,2455.8,5.75903]
[1749195817718,3.2078,2455.9,2455.8,0.81403]
[1749195817920,3.8674,2455.9,2455.8,5.75903]
[1749195820432,3.2078,2455.9,2455.8,5.75903]
[1749195820628,0.00610961,2456.1,2456.0,0.81396]
[1749195820817,3.8674,2456.7,2456.1,4.06965]
[1749195821126,3.8674,2456.7,2456.6,0.81376]
[1749195821323,4.98892016,2456.7,2456.6,5.75876]
[1749195822225,3.8674,2456.7,2456.6,5.75876]
[1749195823425,0.6596,2456.7,2456.6,5.75876]
[1749195824317,0.00610961,2456.9,2456.8,0.81369]
[1749195825727,0.81369,2456.8,2456.7,0.6766]
[1749195825923,0.81373,2456.7,2456.6,5.75875]
[1749195826132,2.17372,2456.8,2456.6,4.945]
[1749195826324,2.17372,2456.8,2456.7,0.81373]
[1749195826635,2.17372,2456.8,2456.6,4.945]
[1749195826825,2.17372,2456.8,2456.7,0.81373]
[1749195827326,1.36,2456.8,2456.6,5.75875]
[1749195827526,2.17372,2456.8,2456.6,5.75875]
[1749195827732,2.17372,2456.8,2456.6,4.945]
[1749195827927,1.36,2456.8,2456.6,5.75874]
[1749195828128,3.2078,2456.7,2456.3,24.62]
[1749195828429,0.81386,2456.3,2456.2,4.939]
[1749195828630,0.81386,2456.3,2456.2,5.75289]
[1749195828829,2.09426,2456.3,2456.2,5.75289]
[1749195829633,1.2804,2456.3,2456.2,5.75289]
[1749195831331,2.09426,2456.3,2456.2,5.75289]
[1749195832331,2.09426,2456.3,2456.2,4.939]
[1749195833127,2.09426,2456.3,2456.2,5.75289]
[1749195834132,2.09426,2456.3,2456.2,4.939]
[1749195836639,3.31509,2456.3,2455.9,0.6804]
[1749195836834,4.02173,2456.1,2456.0,4.939]
[1749195837339,0.81396,2456.0,2455.9,0.6804]
[1749195837536,0.81396,2456.0,2455.9,6.43339]
[1749195838245,0.81396,2456.0,2455.9,5.6194]
[1749195838534,0.81396,2456.0,2455.9,6.43339]
[1749195839640,0.81396,2456.0,2455.9,5.6194]
[1749195840140,0.81396,2456.0,2455.9,6.43339]
[1749195840344,4.02174,2456.1,2456.0,0.81396]
[1749195840948,3.2078,2456.1,2456.0,0.81396]
[1749195841344,4.02173,2456.1,2456.0,0.81396]
[1749195841643,0.81396,2456.0,2455.9,6.43336]
[1749195841846,0.81396,2456.0,2455.9,7.71406]
[1749195842143,0.81396,2456.0,2455.9,1.49439]
[1749195842451,0.81396,2456.0,2455.9,5.6194]
[1749195842644,0.81396,2456.0,2455.9,1.49439]
[1749195842842,0.81396,2456.0,2455.9,6.43339]
[1749195845555,4.02175,2456.1,2456.0,0.81396]
[1749195845853,0.81396,2456.0,2455.9,0.6804]
[1749195846055,0.81406,2455.7,2455.6,24.62510961]
[1749195846359,4.02186,2455.7,2455.6,0.00610961]
[1749195846560,4.02186,2455.7,2455.6,4.94510961]
[1749195846858,4.02186,2455.7,2455.6,0.00610961]
[1749195850259,0.81403,2455.8,2455.7,0.81406]
[1749195850559,0.81403,2455.8,2455.7,1.49026]
[1749195851851,0.6307,2456.0,2455.8,0.81401]
[1749195851852,0.81401,2455.9,2455.8,0.81401]
[1749195852454,0.81401,2455.9,2455.8,0.814]
[1749195852761,0.6307,2456.0,2455.7,0.6762]
[1749195852953,0.81401,2455.9,2455.8,0.814]
[1749195853155,1.44469,2456.0,2455.9,0.81399]
[1749195853356,3.8677,2456.1,2456.0,0.81396]
[1749195853555,4.68165,2456.1,2456.0,0.81396]
[1749195854265,4.68165,2456.1,2456.0,5.75396]
[1749195854668,3.2078,2456.1,2456.0,5.75396]
[1749195859564,0.81386,2456.3,2456.2,0.81389]
[1749195859763,3.2078,2456.4,2456.3,0.81386]
[1749195859964,4.02163,2456.4,2456.3,0.81386]
[1749195860359,0.81387,2456.3,2456.2,0.81388]
[1749195860860,4.02165,2456.4,2456.3,0.81386]
[1749195861467,3.2078,2456.4,2456.3,0.81386]
[1749195862660,4.02163,2456.4,2456.3,0.81386]
[1749195863270,3.2078,2456.4,2456.3,0.81386]
[1749195863768,4.02163,2456.4,2456.3,0.81386]
[1749195863969,3.2078,2456.4,2456.3,0.81386]
[1749195867767,4.02163,2456.4,2456.3,0.81386]
[1749195868070,3.2078,2456.4,2456.3,0.81386]
[1749195869069,0.81382,2456.5,2456.4,0.81383]
[1749195870869,1.45872,2456.6,2456.5,0.81383]
[1749195871169,0.81383,2456.5,2456.4,0.81383]
[1749195872163,0.6449,2456.6,2456.2,2.69583]
[1749195872363,0.81381,2456.5,2456.4,0.81381]
[1749195872868,0.6449,2456.6,2456.2,2.69583]
[1749195873064,0.6449,2456.6,2456.5,0.8138]
[1749195873065,1.45868,2456.6,2456.5,0.8138]
[1749195875665,1.45866,2456.6,2456.5,1.4762]
[1749195876871,0.6449,2456.6,2456.5,1.4762]
[1749195877473,1.45866,2456.6,2456.5,1.4762]
[1749195877667,0.81379,2456.5,2456.4,4.933]
[1749195877867,0.81379,2456.5,2456.4,5.74679]
[1749195878161,1.45867,2456.6,2456.5,0.81379]
[1749195881778,0.6449,2456.6,2456.5,0.81379]
[1749195882580,1.45866,2456.6,2456.5,0.81379]
[1749195882878,1.45866,2456.6,2456.4,5.74683]
[1749195883180,4.66646,2456.6,2456.4,5.74683]
[1749195883482,0.81379,2456.5,2456.4,5.74683]
[1749195883985,3.8527,2456.6,2456.4,4.933]
[1749195884281,0.81379,2456.5,2456.4,4.933]
[1749195884684,5.88712,2456.6,2455.9,3.2078]
[1749195884979,0.81391,2456.2,2456.1,1.49741]
[1749195885677,0.81388,2456.3,2456.1,0.6835]
[1749195885880,0.81389,2456.2,2456.1,0.6835]
[1749195886081,0.81389,2456.2,2456.1,5.6085]
[1749195886480,1.46059,2456.2,2456.1,5.6085]
[1749195886980,1.46059,2456.2,2456.1,6.42243]
[1749195887371,0.6467,2456.2,2456.1,6.42243]
[1749195887580,3.8917,2456.3,2456.2,0.81389]
[1749195888183,3.2078,2456.3,2456.2,0.81389]
[1749195888578,4.02166,2456.3,2456.2,0.81389]
[1749195889586,3.2078,2456.3,2456.2,0.81389]
[1749195891386,4.02166,2456.3,2456.2,0.81389]
[1749195891580,3.2078,2456.3,2456.2,0.81389]
[1749195897294,3.2078,2456.6,2456.3,2.03462]
[1749195897594,3.2078,2456.6,2456.5,0.8138]
[1749195898187,3.2078,2456.6,2456.5,1.4916]
[1749195899287,3.2078,2456.6,2456.2,0.81388]
[1749195899488,1.47632,2456.5,2456.3,0.81385]
[1749195900195,0.81383,2456.4,2456.2,0.81387]
[1749195900395,1.47631,2456.5,2456.3,0.81384]
[1749195900694,4.02158,2456.6,2456.4,0.81383]
[1749195900894,4.02158,2456.6,2456.5,0.6787]
[1749195901093,0.81384,2456.4,2456.2,1.2738]
[1749195901395,0.81384,2456.4,2456.3,4.925]
[1749195902998,0.81386,2456.3,2456.2,0.6787]
[1749195903195,4.02166,2456.3,2456.2,0.6787]
[1749195903498,3.2078,2456.3,2456.2,0.81389]
[1749195906593,4.02166,2456.3,2456.2,0.81389]
[1749195906896,5.24253,2456.3,2455.8,4.925]
[1749195907096,3.2078,2456.0,2455.6,0.82016961]
[1749195907293,1.45361,2455.9,2455.7,0.81403]
[1749195907897,1.45361,2455.9,2455.8,0.81403]
[1749195908101,0.6396,2455.9,2455.8,0.81403]
[1749195908594,1.45359,2455.9,2455.8,0.81403]
[1749195909097,0.6396,2455.9,2455.8,0.81403]
[1749195910199,1.45359,2455.9,2455.8,0.81403]
[1749195910602,0.6396,2455.9,2455.8,0.81403]
[1749195910898,1.45359,2455.9,2455.8,0.81403]
[1749195911600,0.6396,2455.9,2455.8,0.81403]
[1749195911900,1.45359,2455.9,2455.8,0.81403]
[1749195912094,0.6396,2455.9,2455.8,0.81403]
[1749195913902,3.8474,2455.9,2455.8,0.81403]
[1749195914602,0.81405,2455.8,2455.7,0.81404]
[1749195915199,4.02179,2455.9,2455.8,0.81403]
[1749195915403,0.81405,2455.8,2455.7,0.81404]
[1749195915605,0.6532,2455.8,2455.7,0.81404]
[1749195916406,1.46723,2455.8,2455.7,0.81404]
[1749195916605,0.6532,2455.8,2455.7,0.81404]
[1749195916818,1.46723,2455.8,2455.7,0.81404]
[1749195917119,0.81406,2455.7,2455.6,0.82017961]
[1749195917715,1.46725,2455.8,2455.7,0.81406]
[1749195917916,1.46725,2455.8,2455.6,0.00610961]
[1749195917917,0.6532,2455.8,2455.6,0.00610961]
[1749195918113,2.0251,2455.8,2455.6,0.82018961]
[1749195918315,2.83915,2455.8,2455.7,0.81406]
[1749195918618,2.0251,2455.8,2455.7,0.81406]
[1749195919117,3.2078,2455.9,2455.8,0.81403]
[1749195920111,3.2078,2455.9,2455.8,1.46723]
[1749195920311,3.2078,2455.9,2455.8,2.10273]
[1749195920614,3.2078,2456.2,2456.0,2.03486]
[1749195920920,3.2078,2456.2,2456.1,0.81393]
[1749195921219,3.2078,2456.2,2456.1,1.44943]
[1749195921414,4.02169,2456.2,2456.1,1.44943]
[1749195921614,4.02169,2456.2,2456.1,0.6355]
[1749195921815,4.02169,2456.2,2456.0,0.81396]
[1749195921816,0.81396,2456.1,2456.0,0.81396]
[1749195922712,4.02172,2456.2,2456.1,0.81393]
[1749195925525,3.2078,2456.2,2456.1,0.81393]
[1749195926125,4.02169,2456.2,2456.1,0.81393]
[1749195927318,3.2078,2456.2,2456.1,0.81393]
[1749195927623,4.02169,2456.2,2456.1,0.81393]
[1749195930220,3.2078,2456.2,2456.1,0.81393]
[1749195930426,4.02169,2456.2,2456.1,0.81393]
[1749195930720,3.2078,2456.2,2456.1,0.81393]
[1749195930926,4.02169,2456.2,2456.1,0.81393]
[1749195932120,0.81396,2456.1,2456.0,0.81394]
[1749195933225,0.81396,2456.0,2455.9,0.6916]
[1749195933525,0.81399,2455.9,2455.8,0.81402]
[1749195934520,0.6377,2456.0,2455.9,0.81399]
[1749195935324,0.81403,2455.8,2455.7,0.6624]
[1749195935625,1.10939822,2455.8,2455.6,0.00610961]
[1749195935825,0.6377,2455.7,2455.6,0.82019961]
[1749195936331,3.2078,2455.9,2455.7,0.81404]
[1749195936628,1.92349003,2455.8,2455.7,0.81404]
[1749195936824,1.92349003,2455.8,2455.7,0.81406]
[1749195937229,1.10946003,2455.8,2455.7,0.81406]
[1749195937426,3.2078,2455.9,2455.8,0.81403]
[1749195937627,4.31735207,2455.9,2455.8,0.81403]
[1749195938927,3.2078,2455.9,2455.8,0.81403]
[1749195943331,3.2078,2455.9,2455.7,0.81404]
[1749195943635,0.81403,2455.8,2455.6,0.82017961]
[1749195943835,3.2078,2455.9,2455.6,0.00610961]
[1749195944035,0.81405,2455.8,2455.6,0.82017961]
[1749195944240,4.02181,2455.9,2455.7,0.81406]
[1749195944639,4.02181,2455.9,2455.8,0.6799]
[1749195947144,0.81406,2455.7,2455.6,4.92510961]
[1749195948039,0.81406,2455.7,2455.6,0.00610961]
[1749195948344,6.61243,2455.9,2455.0,5.24347]
[1749195948345,0.81426,2455.1,2455.0,0.7188]
[1749195948635,0.81426,2455.1,2455.0,1.4557]
[1749195948938,2.03577,2455.0,2454.5,4.911]
[1749195949146,0.81442,2454.6,2454.5,4.911]
[1749195951342,0.81442,2454.6,2454.5,5.72546]
[1749195951543,0.81442,2454.6,2454.5,4.911]
[1749195952144,0.81442,2454.6,2454.5,5.72546]
[1749195953145,3.21390961,2454.8,2454.5,4.911]
[1749195953345,0.81441,2454.7,2454.6,0.81441]
[1749195953537,0.81439,2454.7,2454.6,0.81442]
[1749195953738,3.21390961,2454.8,2454.5,4.911]
[1749195954039,0.81441,2454.7,2454.6,0.81442]
[1749195955041,3.21390961,2454.8,2454.5,4.911]
[1749195955245,4.02828961,2454.8,2454.7,0.81439]
[1749195955543,0.81439,2454.7,2454.6,1.4448]
[1749195956142,0.81439,2454.7,2454.6,0.7171]
[1749195958848,0.81449,2454.4,2454.3,0.82060961]
[1749195959150,4.02229,2454.4,2454.3,0.82060961]
[1749195960246,3.2078,2454.4,2454.3,2.20950961]
[1749195961649,4.02229,2454.4,2454.3,2.20950961]
[1749195962049,3.2078,2454.4,2454.3,2.20950961]
[1749195962550,4.02229,2454.4,2454.3,1.39500961]
[1749195962742,4.02229,2454.4,2454.3,0.00610961]
[1749195964949,0.81469,2453.9,2453.7,0.7359]
[1749195965244,3.2078,2453.8,2453.3,4.913]
[1749195965454,4.02259,2453.5,2453.4,0.7274]
[1749195965948,3.2078,2453.5,2453.4,1.54222]
[1749195966142,4.02259,2453.5,2453.4,2.0658]
[1749195966550,3.2078,2453.5,2453.4,2.88062]
[1749195966750,3.2078,2453.5,2453.4,0.7274]
[1749195966751,4.02259,2453.5,2453.4,0.7274]
[1749195967151,4.02259,2453.5,2453.4,1.54222]
[1749195967352,4.02259,2453.5,2453.4,0.7274]
[1749195967544,4.02259,2453.5,2453.4,1.54222]
[1749195967746,3.2078,2453.5,2453.4,1.54222]
[1749195970153,3.2078,2453.5,2453.4,2.90562]
[1749195972847,0.81483,2453.4,2453.2,0.00610961]
[1749195973047,3.21390961,2453.5,2453.4,0.81482]
[1749195973754,4.02869961,2453.5,2453.4,0.81482]
[1749195974450,4.02869961,2453.5,2453.2,0.00610961]
[1749195974451,0.81486,2453.3,2453.2,0.00610961]
[1749195974659,0.81486,2453.3,2452.9,0.81498]
[1749195974855,3.2078,2453.0,2452.9,0.81498]
[1749195975359,3.2078,2453.3,2453.1,0.81489]
[1749195975561,3.2078,2453.3,2453.2,0.81489]
[1749195975960,3.2078,2453.3,2452.8,4.86332]
[1749195976157,3.2078,2453.3,2453.2,0.81489]
[1749195976658,3.2078,2453.3,2453.1,0.8149]
[1749195976845,3.2078,2453.3,2453.2,0.81489]
[1749195977247,3.2078,2453.3,2452.9,2.03748]
[1749195977450,3.2078,2453.3,2453.2,0.81489]
[1749195981656,4.02266,2453.3,2453.2,0.81489]
[1749195982157,3.2078,2453.3,2453.2,0.81489]
[1749195983364,0.00610961,2453.5,2453.4,0.81482]
[1749195984357,0.82089961,2453.5,2453.4,0.81482]
[1749195984557,0.81482,2453.4,2452.9,2.03742]
[1749195984764,3.2078,2453.3,2453.2,0.81487]
[1749195984963,4.77398,2453.3,2453.1,0.81492]
[1749195985159,2.1231,2453.2,2452.8,0.7194]
[1749195985462,1.3807,2453.1,2452.9,0.81498]
[1749195985666,3.2078,2453.0,2452.9,0.81498]
[1749195985868,4.02276,2453.0,2452.9,0.81498]
[1749195986063,3.2078,2453.0,2452.9,0.81498]
[1749195986264,3.2078,2453.0,2452.9,0.81499]
[1749195986464,4.4848,2453.0,2452.9,0.81499]
[1749195987063,5.29976,2453.0,2452.9,0.81499]
[1749195987366,4.4848,2453.0,2452.9,0.81499]
[1749195987566,5.29976,2453.0,2452.9,0.81499]
[1749195988167,4.4848,2453.0,2452.5,2.03781]
[1749195988367,0.7136,2452.9,2452.8,0.81502]
[1749195990571,1.52859,2452.9,2452.8,0.81502]
[1749195990772,0.7136,2452.9,2452.8,0.81502]
[1749195991566,1.52859,2452.9,2452.8,0.81502]
[1749195991767,0.7136,2452.9,2452.8,0.81502]
[1749195992274,1.52859,2452.9,2452.8,0.81502]
[1749195992666,0.7136,2452.9,2452.8,0.81502]
[1749195995568,0.7136,2452.9,2452.5,4.91]
[1749195995771,0.81506,2452.8,2452.7,0.81504]
[1749195995971,2.12786,2452.8,2452.7,0.81504]
[1749195996174,1.3128,2452.8,2452.7,0.81504]
[1749195996877,0.7136,2452.9,2452.8,0.81502]
[1749195999184,3.2078,2453.0,2452.9,0.81499]
[1749196000268,1.55732,2453.2,2453.1,0.81492]
[1749196000468,2.61228062,2453.2,2453.1,0.81492]
[1749196000673,1.79736062,2453.2,2453.1,0.81492]
[1749196001575,2.61225062,2453.2,2453.0,0.81493]
[1749196001870,1.55729,2453.2,2453.0,0.81493]
[1749196002072,0.81492,2453.1,2453.0,0.81493]
[1749196002478,0.81492,2453.1,2452.9,0.81497]
[1749196002983,4.02276,2453.0,2452.9,0.81497]
[1749196003166,3.2078,2453.0,2452.9,0.81497]
[1749196003774,4.02276,2453.0,2452.9,0.81497]
[1749196004771,0.81499,2452.9,2452.8,0.7124]
[1749196004973,0.81499,2452.9,2452.8,1.52742]
[1749196005578,4.02278,2453.0,2452.9,0.81499]
[1749196006080,0.81499,2452.9,2452.8,1.5274]
[1749196006382,0.81499,2452.9,2452.8,0.7124]
[1749196007573,0.81499,2452.9,2452.8,1.52742]
[1749196007774,0.81499,2452.9,2452.8,0.7124]
[1749196008077,0.81499,2452.9,2452.8,1.52742]
[1749196008674,0.81499,2452.9,2452.8,0.7124]
[1749196009179,4.79378,2453.0,2452.8,0.7124]
[1749196009375,3.9788,2453.0,2452.9,0.81499]
[1749196009677,3.9788,2453.0,2452.8,1.5274]
[1749196009678,0.81499,2452.9,2452.8,1.5274]
[1749196010082,3.2078,2453.0,2452.9,0.81499]
[1749196010279,3.2078,2453.0,2452.8,1.5274]
[1749196010480,0.81499,2452.9,2452.8,1.5274]
[1749196010979,4.02278,2453.0,2452.9,0.81499]
[1749196011181,0.81499,2452.9,2452.8,1.5274]
[1749196011678,4.02278,2453.0,2452.9,0.81499]
[1749196012277,3.2078,2453.0,2452.9,0.81499]
[1749196012580,4.02276,2453.0,2452.9,0.81499]
[1749196013176,3.2078,2453.0,2452.9,0.81499]
[1749196013779,4.02279,2453.0,2452.9,0.81499]
[1749196015776,3.2078,2453.0,2452.9,0.81499]
[1749196016183,4.02276,2453.0,2452.9,0.81499]
[1749196017384,0.81499,2452.9,2452.8,1.5274]
[1749196018385,4.02278,2453.0,2452.9,0.81499]
[1749196018685,0.81499,2452.9,2452.8,0.7124]
[1749196018885,0.81502,2452.8,2452.7,0.81503]
[1749196019485,0.7829,2452.9,2452.6,0.7694]
[1749196019681,0.8151,2452.6,2452.4,5.6435]
[1749196019879,3.2078,2452.7,2452.1,4.06709295]
[1749196020186,0.7829,2452.5,2452.4,0.81515]
[1749196020380,3.2078,2452.7,2452.6,0.81509]
[1749196021285,3.2078,2452.7,2452.6,2.19899]
[1749196022989,3.2078,2452.7,2452.6,0.81509]
[1749196027392,4.02286,2452.7,2452.6,0.81509]
[1749196027791,3.2078,2452.7,2452.6,0.81509]
[1749196032101,3.2078,2453.3,2452.7,2.0376]
[1749196032294,0.81494,2453.1,2452.7,2.03762]
[1749196032601,0.81494,2453.1,2453.0,0.81496]
[1749196033703,3.62141,2453.2,2453.1,0.81492]
[1749196033894,0.81492,2453.1,2453.0,0.81493]
[1749196034509,3.2078,2453.3,2452.9,2.74917]
[1749196034795,0.00610961,2453.5,2453.4,0.81482]
[1749196034994,0.00610961,2453.5,2453.4,46.52282]
[1749196035501,0.00610961,2453.5,2453.4,47.83012]
[1749196036305,0.00610961,2453.5,2453.4,51.0788903]
[1749196036703,3.2078,2453.9,2453.8,0.81469]
[1749196036998,3.2078,2453.9,2453.8,5.72269]
[1749196037606,4.02246,2453.9,2453.8,5.72269]
[1749196037996,4.02246,2453.9,2453.8,4.908]
[1749196039411,3.2078,2453.9,2453.8,4.908]
[1749196040103,3.2078,2453.9,2453.8,5.72269]
[1749196040804,4.02246,2453.9,2453.8,4.908]
[1749196041201,4.02246,2453.9,2453.8,5.72269]
[1749196041409,3.2078,2453.9,2453.8,5.72269]
[1749196041709,4.02246,2453.9,2453.8,4.908]
[1749196042302,4.02246,2453.9,2453.8,5.72269]
[1749196043004,0.81469,2453.8,2453.7,6.502]
[1749196043204,4.02248,2453.9,2453.8,0.81469]
[1749196043513,0.81469,2453.8,2453.7,6.502]
[1749196043803,3.2078,2453.9,2453.6,0.00610961]
[1749196044011,0.81472,2453.7,2453.6,0.00610961]
[1749196044503,1.59732,2453.7,2453.6,0.00610961]
[1749196044703,2.95502,2453.7,2453.6,0.00610961]
[1749196045711,9.17712,2453.7,2453.2,0.81486]
[1749196046007,4.02267,2453.3,2453.2,0.81486]
[1749196047709,4.02267,2453.3,2453.1,0.8149]
[1749196048408,0.81489,2453.2,2453.1,0.8149]
[1749196049411,0.81492,2453.1,2453.0,5.6451]
[1749196050006,2.03741,2453.0,2452.7,4.905]
[1749196050212,0.81502,2452.8,2452.7,4.905]
[1749196052809,0.81506,2452.7,2452.6,1.56989]
[1749196053010,0.81506,2452.7,2452.6,6.47489]
[1749196054112,0.81503,2452.8,2452.7,0.81503]
[1749196054508,5.56611,2452.9,2452.8,0.81502]
[1749196055014,0.81503,2452.8,2452.7,0.81502]
[1749196055215,0.81504,2452.8,2452.7,0.81503]
[1749196055523,0.81504,2452.8,2452.7,0.81504]
[1749196056916,4.80462,2452.9,2452.8,0.81502]
[1749196057207,0.81503,2452.8,2452.7,0.81503]
[1749196058210,4.0228,2452.9,2452.8,0.81502]
[1749196058406,4.02279,2452.9,2452.8,0.81502]
[1749196060414,0.81502,2452.8,2452.7,0.81505]
[1749196060812,0.81502,2452.8,2452.6,7.80176]
[1749196061011,0.81506,2452.7,2452.6,5.6598]
[1749196061515,0.81506,2452.7,2452.6,6.47489]
[1749196061716,0.81506,2452.7,2452.6,5.6598]
[1749196063117,0.81506,2452.7,2452.6,6.47489]
[1749196064212,0.81506,2452.7,2452.6,5.6598]
[1749196064614,5.24531,2452.9,2452.5,24.655]
[1749196064918,1.54469,2452.6,2452.5,30.37612]
[1749196065116,1.54469,2452.6,2452.5,5.72112]
[1749196065317,1.54469,2452.6,2452.5,4.906]
[1749196065515,3.9374,2452.6,2452.2,41.6152]
[1749196065720,4.02299,2452.3,2452.2,0.732]
[1749196066620,4.02299,2452.3,2452.2,1.54722]
[1749196066923,4.02299,2452.3,2452.2,0.732]
[1749196067116,4.02299,2452.3,2452.2,1.54722]
[1749196067423,4.02302,2452.3,2452.2,1.54722]
[1749196067608,4.02302,2452.3,2452.2,0.732]
[1749196067814,0.81522,2452.2,2452.1,4.906]
[1749196068015,3.2078,2452.3,2452.1,5.6132]
[1749196068213,5.24488,2453.4,2452.3,2.03798]
[1749196068417,0.81498,2453.0,2452.5,3.2078]
[1749196068616,0.81498,2453.0,2452.7,0.81503]
[1749196068824,0.7673,2453.1,2452.8,0.81502]
[1749196069124,1.58223,2453.1,2452.8,0.81502]
[1749196069323,0.81496,2453.0,2452.8,0.81502]
[1749196069522,1.58224,2453.1,2452.8,0.81502]
[1749196069726,0.81496,2453.0,2452.8,0.81502]
[1749196069923,1.58225,2453.1,2452.8,0.81502]
[1749196070118,0.81496,2453.0,2452.8,0.81502]
[1749196070537,0.82112961,2452.9,2452.7,0.81504]
[1749196070720,0.82112961,2452.9,2452.6,2.8428]
[1749196070923,0.82112961,2452.9,2452.8,0.81502]
[1749196071123,0.00610961,2452.9,2452.8,0.81502]
[1749196073425,0.00610961,2452.9,2452.8,4.02282]
[1749196076130,0.00610961,2452.9,2452.8,8.92582]
[1749196077931,0.00610961,2452.9,2452.8,4.02282]
[1749196079832,0.82109961,2452.9,2452.8,4.02282]
[1749196080222,0.00610961,2452.9,2452.8,3.2078]
[1749196080532,0.00610961,2452.9,2452.8,4.02282]
[1749196081124,3.2078,2453.4,2453.3,0.81486]
[1749196081319,5.31464,2453.7,2453.4,0.81482]
[1749196081525,4.02254,2453.7,2453.6,0.81476]
[1749196082622,4.02254,2453.7,2453.4,0.00610961]
[1749196082623,8.2078,2453.7,2453.4,0.00610961]
[1749196082829,0.81479,2453.5,2453.4,0.00610961]
[1749196083029,0.81496,2453.0,2452.9,0.81496]
[1749196083829,0.81501,2452.9,2452.8,0.815]
[1749196084234,0.81498,2453.0,2452.9,0.81496]
[1749196085540,0.81502,2452.8,2452.7,4.02283]
[1749196085832,0.81502,2452.8,2451.9,5.69314401]
[1749196085833,2.03765,2452.7,2451.9,8.9361189]
[1749196086133,0.8152,2452.3,2452.2,0.81521]
[1749196086532,0.81517,2452.4,2452.3,0.81518]
[1749196086827,3.91170961,2452.5,2451.9,42.1589]
[1749196087031,0.81521,2452.3,2452.2,0.81521]
[1749196087536,0.81518,2452.4,2452.3,0.81518]
[1749196088831,0.81519,2452.3,2452.2,0.8152]
[1749196089035,0.81529,2452.0,2451.9,41.6153]
[1749196089334,0.81527,2452.1,2452.0,0.81527]
[1749196089734,0.81525,2452.2,2452.0,0.81527]